bitfinex/quotes_SOLUSD_20251002
["timestamp","ask_amount","ask_price","bid_price","bid_amount"]
[1759433085922,2.76050385,232.22,232.2,0.1]
[1759433086326,0.72,232.21,232.2,0.1]
[1759433086962,0.72,232.23,232.2,0.1]
[1759433088143,0.72,232.27,232.21,30.76]
[1759433088452,0.72,232.27,232.2,35.20662217]
[1759433089552,5.025356,232.27,232.2,35.20662217]
[1759433089761,5.025356,232.27,232.2,4.40662217]
[1759433089935,5.025356,232.27,232.2,35.20662217]
[1759433090959,5.025356,232.27,232.2,35.18662217]
[1759433091544,5.025356,232.27,232.2,4.40662217]
[1759433091748,5.025356,232.27,232.2,35.18662217]
[1759433092646,5.025356,232.27,232.2,35.16662217]
[1759433092957,0.72,232.27,232.2,35.16662217]
[1759433093730,4.30473731,232.31,232.21,0.27]
[1759433093951,0.72,232.3,232.21,0.27]
[1759433094742,4.30496362,232.29,232.22,4.3062613]
[1759433094945,4.30480272,232.3,232.23,30.74]
[1759433095252,0.72,232.29,232.23,30.74]
[1759433095441,4.30480272,232.3,232.23,30.74]
[1759433096051,0.72,232.31,232.23,30.74]
[1759433097069,5.02467731,232.31,232.24,4.30589045]
[1759433097655,4.30467731,232.31,232.23,35.0460597]
[1759433097841,0.72,232.3,232.23,35.0460597]
[1759433098043,0.72,232.29,232.2,0.1]
[1759433098363,0.72,232.29,232.21,30.72]
[1759433098542,0.72,232.28,232.21,35.0264395]
[1759433098745,11.59647521,232.3,232.21,35.2964395]
[1759433099054,4.30496362,232.29,232.21,35.0264395]
[1759433099252,0.72,232.28,232.21,35.0264395]
[1759433099655,4.30496362,232.29,232.21,35.2964395]
[1759433100563,4.30496362,232.29,232.2,10.86637647]
[1759433100564,0.72,232.28,232.2,20.9]
[1759433100764,0.72,232.28,232.21,30.72]
[1759433100950,0.72,232.28,232.2,25.47660829]
[1759433101155,0.72,232.28,232.2,56.19660829]
[1759433101577,0.72,232.28,232.2,25.47660829]
[1759433101774,0.72,232.28,232.2,56.19660829]
[1759433102071,4.30496362,232.29,232.21,0.27]
[1759433102253,11.54647521,232.3,232.21,0.27]
[1759433102757,15.85137199,232.3,232.22,4.3062613]
[1759433103269,0.67,232.31,232.23,0.27]
[1759433103469,4.97462463,232.31,232.21,4.30639516]
[1759433103647,0.67,232.3,232.21,30.72]
[1759433104171,0.67,232.29,232.21,30.72]
[1759433104379,15.06610713,232.31,232.21,30.72]
[1759433104675,4.30496362,232.29,232.22,4.3062613]
[1759433104870,4.97496362,232.29,232.22,4.3062613]
[1759433105047,0.67,232.29,232.22,4.3062613]
[1759433105249,4.30477203,232.31,232.22,4.3062613]
[1759433105250,4.97477203,232.31,232.22,15.34191455]
[1759433105443,0.67,232.31,232.22,15.07191455]
[1759433105671,0.67,232.3,232.22,79.1]
[1759433105878,0.67,232.3,232.22,79.37]
[1759433106059,0.67,232.3,232.23,30.72]
[1759433106257,0.67,232.3,232.22,79.37]
[1759433106453,0.67,232.3,232.23,30.72]
[1759433106655,4.9747856,232.3,232.24,4.30589045]
[1759433106954,0.67,232.3,232.24,4.30589045]
[1759433107154,4.30460571,232.31,232.24,4.30589045]
[1759433107467,4.97433925,232.33,232.24,4.30589045]
[1759433107677,4.30433925,232.33,232.24,83.40589045]
[1759433107853,0.67,232.32,232.24,83.40589045]
[1759433108451,0.67,232.31,232.24,83.40589045]
[1759433108958,4.97467182,232.31,232.24,83.40589045]
[1759433109555,0.67,232.31,232.24,83.40589045]
[1759433110091,4.97439827,232.33,232.24,83.67589045]
[1759433110460,4.30439827,232.33,232.24,94.44061659]
[1759433110658,0.67,232.32,232.24,94.44061659]
[1759433110860,4.9744747,232.32,232.24,94.44061659]
[1759433111678,0.67,232.33,232.24,94.17061659]
[1759433111892,0.67,232.33,232.25,0.27]
[1759433112894,4.30440771,232.32,232.26,4.30551967]
[1759433113465,0.67,232.31,232.2,0.37]
[1759433113808,0.67,232.31,232.2,4.40659538]
[1759433113958,10.87647521,232.29,232.2,35.39659538]
[1759433114158,11.54647521,232.29,232.2,35.39659538]
[1759433114662,4.30403718,232.34,232.22,4.3062613]
[1759433114859,10.87647521,232.3,232.23,0.27]
[1759433116091,0.67,232.31,232.23,0.27]
[1759433116267,0.67,232.31,232.24,30.72]
[1759433116465,0.67,232.3,232.2,4.67652567]
[1759433116772,4.30514895,232.28,232.2,35.12652567]
[1759433116974,4.97514895,232.28,232.2,45.8931062]
[1759433117355,0.67,232.28,232.2,46.1631062]
[1759433117575,0.67,232.28,232.2,45.8931062]
[1759433117770,0.67,232.28,232.21,0.27]
[1759433118590,0.67,232.28,232.22,4.3062613]
[1759433119285,0.67,232.27,232.21,4.30642016]
[1759433121160,4.97535042,232.27,232.21,4.30642016]
[1759433121660,4.30535042,232.27,232.21,4.30642016]
[1759433122074,0.67,232.28,232.21,4.57642016]
[1759433122285,0.67,232.31,232.22,0.27]
[1759433122591,4.30422281,232.33,232.22,0.27]
[1759433122769,21.47,232.34,232.22,0.27]
[1759433122974,0.67,232.34,232.24,20.8]
[1759433123182,4.97410701,232.34,232.26,4.30551967]
[1759433123864,4.30410701,232.34,232.26,4.30551967]
[1759433124061,0.68,232.33,232.26,35.02551967]
[1759433124480,0.68,232.33,232.26,4.30551967]
[1759433124688,0.68,232.33,232.26,35.02551967]
[1759433125186,4.98428551,232.33,232.26,35.02551967]
[1759433126992,0.68,232.33,232.26,45.78931886]
[1759433127473,4.98431197,232.33,232.26,45.78931886]
[1759433127665,4.98431197,232.33,232.26,15.06931886]
[1759433127867,4.98431197,232.33,232.26,4.30551967]
[1759433128267,0.68,232.32,232.26,4.30551967]
[1759433128674,4.98444761,232.32,232.26,4.30551967]
[1759433128886,4.98444761,232.32,232.26,35.02551967]
[1759433129081,0.68,232.35,232.26,35.02551967]
[1759433129286,0.68,232.35,232.27,0.27]
[1759433130192,0.68,232.35,232.28,4.30514895]
[1759433130994,4.30403718,232.34,232.28,4.30514895]
[1759433132893,0.72,232.33,232.27,4.3053343]
[1759433133492,0.72,232.33,232.26,114.12549407]
[1759433133678,0.72,232.33,232.26,83.40549407]
[1759433134090,0.72,232.33,232.27,30.7]
[1759433134591,4.30403718,232.34,232.27,30.7]
[1759433134792,4.30403718,232.34,232.28,0.27]
[1759433134983,5.02403718,232.34,232.28,4.30503254]
[1759433136768,2.89602171,232.37,232.28,4.57503254]
[1759433137091,0.72,232.36,232.25,0.27]
[1759433137285,10.87647521,232.31,232.2,0.1]
[1759433137492,12.64239339,232.27,232.2,0.1]
[1759433137694,0.72,232.26,232.2,0.1]
[1759433138377,5.02567237,232.26,232.2,4.40662852]
[1759433138902,0.72,232.26,232.2,4.40662852]
[1759433139113,0.72,232.29,232.2,4.67662852]
[1759433139474,0.72,232.29,232.2,15.44320905]
[1759433139773,0.72,232.28,232.2,15.44320905]
[1759433140195,0.72,232.28,232.21,30.7]
[1759433140389,0.72,232.28,232.2,15.44320905]
[1759433140582,5.02519347,232.28,232.21,30.7]
[1759433140894,0.72,232.28,232.22,30.7]
[1759433141094,0.72,232.32,232.23,0.27]
[1759433141595,0.72,232.32,232.22,30.7]
[1759433141905,0.72,232.31,232.23,20.8]
[1759433142087,15.06477854,232.33,232.23,51.5]
[1759433142382,0.72,232.32,232.23,51.5]
[1759433142585,0.72,232.31,232.24,4.30589045]
[1759433142776,0.72,232.3,232.24,4.30589045]
[1759433143178,0.72,232.3,232.23,51.5]
[1759433143499,0.72,232.3,232.23,20.8]
[1759433144497,4.30488196,232.3,232.23,55.8060318]
[1759433144691,4.30488196,232.3,232.24,30.97]
[1759433144897,4.30488196,232.3,232.24,0.27]
[1759433145476,4.30488196,232.3,232.23,51.5]
[1759433146000,4.30488196,232.3,232.23,51.5]
[1759433146191,4.30488196,232.3,232.23,20.8]
[1759433146688,4.30488196,232.3,232.23,51.5]
[1759433146887,15.06542699,232.32,232.23,51.5]
[1759433147085,0.72,232.31,232.23,20.8]
[1759433147301,0.72,232.3,232.23,20.8]
[1759433147498,0.72,232.3,232.23,51.5]
[1759433147813,15.78542699,232.32,232.24,0.27]
[1759433148179,15.78542699,232.32,232.23,20.8]
[1759433148402,0.72,232.31,232.23,25.10607294]
[1759433148797,0.72,232.31,232.23,55.80607294]
[1759433148989,4.3047783,232.3,232.23,25.10607294]
[1759433149213,4.3047783,232.3,232.23,55.80607294]
[1759433149397,0.72,232.29,232.23,20.8]
[1759433150679,0.72,232.29,232.2,11.13658053]
[1759433150680,0.72,232.28,232.2,0.1]
[1759433150881,0.72,232.28,232.2,20.9]
[1759433151211,0.72,232.27,232.2,0.1]
[1759433151506,0.72,232.27,232.2,20.9]
[1759433151708,4.30514895,232.28,232.2,21.17]
[1759433151910,4.30514895,232.28,232.21,0.27]
[1759433152493,4.30489981,232.3,232.22,30.7]
[1759433152792,4.30489981,232.3,232.22,30.97]
[1759433153289,5.02459836,232.31,232.23,4.30607587]
[1759433153491,5.02459836,232.31,232.23,4.57607587]
[1759433154804,0.72,232.3,232.23,4.30607587]
[1759433155017,0.72,232.3,232.22,35.0062562]
[1759433156113,4.30496362,232.29,232.22,35.0062562]
[1759433156923,4.30496362,232.29,232.23,0.27]
[1759433157416,5.0247787,232.3,232.23,0.27]
[1759433157800,5.0247787,232.3,232.21,4.30644226]
[1759433158004,0.72,232.29,232.22,30.7]
[1759433158901,4.30514895,232.28,232.22,30.7]
[1759433160118,0.72,232.29,232.21,4.57644028]
[1759433160322,4.30494226,232.3,232.22,51.75]
[1759433160628,4.30494226,232.3,232.22,21.07]
[1759433160798,0.72,232.29,232.23,30.68]
[1759433161001,4.30514895,232.28,232.23,30.68]
[1759433161205,5.02514895,232.28,232.23,30.68]
[1759433161411,5.00514895,232.28,232.23,30.68]
[1759433161610,4.30514895,232.28,232.23,4.5760742]
[1759433162419,4.30514895,232.28,232.23,4.3060742]
[1759433162612,5.00514895,232.28,232.22,51.48]
[1759433162809,5.00514895,232.28,232.22,20.8]
[1759433163026,5.00514895,232.28,232.22,51.48]
[1759433163224,0.7,232.27,232.2,0.1]
[1759433163433,0.7,232.27,232.21,20.8]
[1759433165124,0.7,232.26,232.2,0.1]
[1759433165310,4.30570505,232.25,232.2,0.1]
[1759433165507,5.00570505,232.25,232.2,0.1]
[1759433166227,5.00570505,232.25,232.19,20.0]
[1759433166526,0.7,232.24,232.19,20.0]
[1759433166707,4.30607587,232.23,232.16,30.78]
[1759433166906,0.7,232.22,232.16,0.1]
[1759433168625,5.00638125,232.22,232.16,4.40730368]
[1759433168798,0.7,232.22,232.16,4.40730368]
[1759433169510,10.76247542,232.29,232.17,0.27]
[1759433169707,0.7,232.27,232.17,0.27]
[1759433169905,0.7,232.27,232.18,30.68]
[1759433170100,0.7,232.27,232.18,30.95]
[1759433170319,10.76247542,232.29,232.19,0.27]
[1759433170320,0.7,232.29,232.19,0.27]
[1759433170505,0.7,232.29,232.21,20.8]
[1759433170713,0.7,232.29,232.22,4.5762613]
[1759433171031,4.30478441,232.3,232.22,4.5762613]
[1759433171403,0.7,232.31,232.23,0.27]
[1759433171606,5.00459544,232.31,232.23,0.27]
[1759433171826,5.00459544,232.31,232.22,25.1062613]
[1759433172037,0.7,232.3,232.22,25.1062613]
[1759433172728,0.7,232.3,232.22,55.7862613]
[1759433172931,0.7,232.3,232.22,56.0562613]
[1759433173127,5.00451344,232.32,232.23,0.27]
[1759433173798,0.7,232.32,232.23,0.27]
[1759433174297,15.76545036,232.32,232.22,55.7862613]
[1759433174523,0.7,232.31,232.23,30.68]
[1759433174712,0.7,232.3,232.23,30.68]
[1759433174910,0.7,232.29,232.23,34.98604033]
[1759433176305,0.7,232.28,232.22,20.8]
[1759433176510,10.87647521,232.31,232.21,30.68]
[1759433176824,0.7,232.27,232.21,30.68]
[1759433177022,0.7,232.27,232.21,34.98632697]
[1759433177232,5.00489686,232.3,232.22,0.27]
[1759433179210,5.00489686,232.3,232.21,30.68]
[1759433179410,0.7,232.29,232.22,4.30625916]
[1759433180116,0.7,232.33,232.23,0.27]
[1759433180436,0.7,232.33,232.24,20.8]
[1759433180727,11.57647521,232.32,232.24,20.8]
[1759433180934,0.7,232.31,232.24,20.8]
[1759433181250,5.80467081,232.31,232.25,4.30570505]
[1759433182038,0.7,232.3,232.24,20.8]
[1759433182552,0.7,232.29,232.24,20.8]
[1759433182747,0.7,232.28,232.24,20.8]
[1759433183113,5.00518981,232.28,232.23,20.8]
[1759433184016,5.00518981,232.28,232.23,25.10605443]
[1759433184533,4.30518981,232.28,232.22,30.68]
[1759433184733,0.67,232.27,232.2,20.8]
[1759433185047,0.67,232.27,232.2,55.76661093]
[1759433185214,4.97540032,232.27,232.2,55.76661093]
[1759433186039,4.97540032,232.27,232.2,134.86661093]
[1759433186234,4.30514182,232.29,232.21,0.27]
[1759433186444,0.67,232.28,232.21,0.27]
[1759433186648,0.67,232.28,232.2,114.06661093]
[1759433186943,0.67,232.27,232.2,114.06661093]
[1759433187837,4.97543363,232.27,232.2,114.06661093]
[1759433188041,0.67,232.26,232.19,20.8]
[1759433188219,4.30543363,232.27,232.19,51.46]
[1759433188414,0.67,232.25,232.19,51.46]
[1759433188623,0.67,232.24,232.19,51.46]
[1759433188815,0.67,232.23,232.19,51.46]
[1759433190721,0.67,232.23,232.19,20.8]
[1759433191442,15.06867007,232.27,232.19,20.8]
[1759433191646,0.7,232.23,232.19,20.8]
[1759433191946,0.7,232.22,232.19,20.8]
[1759433192120,0.7,232.21,232.17,4.30713727]
[1759433192318,0.7,232.21,232.17,34.96713727]
[1759433192530,0.7,232.21,232.17,30.66]
[1759433193124,0.7,232.2,232.16,0.1]
[1759433193516,0.7,232.19,232.16,0.1]
[1759433194733,0.7,232.22,232.16,0.1]
[1759433194932,4.30607587,232.23,232.16,4.67732637]
[1759433195134,5.00607587,232.23,232.16,4.67732637]
[1759433195835,0.7,232.22,232.16,0.1]
[1759433197632,4.30644675,232.21,232.16,0.1]
[1759433197838,0.7,232.2,232.16,0.1]
[1759433198720,0.7,232.19,232.16,0.1]
[1759433198968,0.7,232.21,232.16,0.1]
[1759433199123,4.30617974,232.23,232.16,0.1]
[1759433199124,0.7,232.23,232.16,4.67723541]
[1759433199525,0.7,232.23,232.17,30.66]
[1759433199846,5.00610127,232.23,232.17,34.96707663]
[1759433200047,0.7,232.23,232.17,34.96707663]
[1759433200345,0.7,232.25,232.17,34.96707663]
[1759433200644,2.7601151,232.28,232.17,34.96707663]
[1759433200645,0.7,232.24,232.17,34.96707663]
[1759433201545,0.8,232.22,232.17,34.96707663]
[1759433201733,0.8,232.22,232.17,35.23707663]
[1759433203952,0.8,232.22,232.18,0.27]
[1759433204270,0.7,232.3,232.2,20.8]
[1759433204434,0.7,232.3,232.21,30.93]
[1759433205056,0.7,232.3,232.22,0.27]
[1759433205642,4.30441484,232.32,232.23,4.30607587]
[1759433205829,0.7,232.32,232.23,4.57607587]
[1759433206028,0.7,232.31,232.23,4.57607587]
[1759433206231,0.7,232.3,232.23,4.57607587]
[1759433207136,0.7,232.3,232.23,15.34126555]
[1759433207847,0.7,232.3,232.23,4.57607587]
[1759433208546,2.7601151,232.24,232.16,0.1]
[1759433208758,30.64,232.3,232.16,0.1]
[1759433208759,0.7,232.23,232.16,0.1]
[1759433209127,0.7,232.23,232.16,4.40729863]
[1759433209128,5.00611162,232.23,232.16,4.40729863]
[1759433209358,4.30611162,232.23,232.16,4.40729863]
[1759433209564,0.7,232.22,232.16,0.1]
[1759433210855,0.7,232.22,232.16,4.40730531]
[1759433211030,5.00590177,232.24,232.16,4.40730531]
[1759433211530,0.7,232.24,232.16,15.44574087]
[1759433212132,0.7,232.23,232.16,25.20730531]
[1759433212351,0.7,232.22,232.16,55.84730531]
[1759433212645,0.7,232.23,232.16,55.84730531]
[1759433212826,0.7,232.22,232.16,55.84730531]
[1759433213023,0.7,232.21,232.16,55.84730531]
[1759433213252,0.7,232.2,232.16,55.84730531]
[1759433213455,0.7,232.19,232.16,0.1]
[1759433213636,0.7,232.21,232.16,0.1]
[1759433214029,0.7,232.2,232.16,0.1]
[1759433214539,0.7,232.19,232.16,0.1]
[1759433214941,0.7,232.21,232.16,4.40735609]
[1759433215122,0.7,232.2,232.16,4.40735609]
[1759433216448,0.7,232.19,232.16,0.1]
[1759433216858,4.30651058,232.21,232.16,0.1]
[1759433217066,0.7,232.18,232.16,0.1]
[1759433217536,0.7,232.17,232.16,0.1]
[1759433219162,4.30662968,232.21,232.16,0.1]
[1759433219647,0.7,232.2,232.16,4.40729378]
[1759433219843,21.6406869,232.26,232.16,4.40729378]
[1759433219844,0.7,232.23,232.16,4.40729378]
[1759433220056,0.7,232.23,232.16,35.31729378]
[1759433221158,0.7,232.26,232.17,0.27]
[1759433221350,13.52281625,232.29,232.16,45.81572934]
[1759433221351,0.7,232.23,232.16,45.81572934]
[1759433221543,0.7,232.23,232.16,46.08572934]
[1759433221745,0.7,232.23,232.16,45.81572934]
[1759433221930,0.7,232.23,232.16,46.08572934]
[1759433222133,17.82777987,232.29,232.16,46.08572934]
[1759433222358,0.67,232.25,232.16,46.08572934]
[1759433223943,0.67,232.25,232.17,0.27]
[1759433224165,0.67,232.25,232.16,45.81572934]
[1759433224459,0.67,232.24,232.16,45.81572934]
[1759433224661,0.67,232.23,232.16,45.81572934]
[1759433225276,0.67,232.26,232.17,0.27]
[1759433225442,0.67,232.26,232.18,15.07451114]
[1759433227360,0.67,232.25,232.18,15.07451114]
[1759433227963,0.67,232.29,232.19,0.27]
[1759433228435,0.67,232.29,232.21,20.8]
[1759433228636,0.67,232.29,232.21,51.44]
[1759433229145,0.67,232.29,232.22,4.3062613]
[1759433230464,0.67,232.28,232.22,4.3062613]
[1759433232168,0.67,232.3,232.22,15.07191455]
[1759433232475,0.67,232.29,232.22,15.07191455]
[1759433233182,0.67,232.29,232.22,15.34191455]
[1759433233346,0.67,232.28,232.22,15.07191455]
[1759433233549,0.67,232.32,232.23,0.27]
[1759433234775,4.97444834,232.32,232.24,4.30589045]
[1759433234944,0.67,232.31,232.24,4.30589045]
[1759433235145,0.67,232.3,232.24,4.30589045]
[1759433237276,0.67,232.29,232.23,4.30607587]
[1759433237458,0.67,232.28,232.19,25.37676473]
[1759433237780,0.67,232.27,232.16,11.13811609]
[1759433237953,1.7662468,232.29,232.16,11.13811609]
[1759433237954,0.67,232.26,232.17,34.92718869]
[1759433238157,0.67,232.25,232.17,55.72718869]
[1759433238365,0.67,232.24,232.17,55.72718869]
[1759433239888,0.67,232.24,232.17,55.99718869]
[1759433241289,0.67,232.27,232.18,0.27]
[1759433241458,2.89326921,232.34,232.2,20.8]
[1759433241769,0.67,232.3,232.21,30.89]
[1759433241978,0.67,232.3,232.22,0.27]
[1759433242766,0.67,232.3,232.23,4.30607587]
[1759433243172,25.10440493,232.33,232.24,0.27]
[1759433243368,0.67,232.32,232.24,0.27]
[1759433244652,0.67,232.32,232.25,4.30570505]
[1759433245265,4.97443504,232.32,232.25,4.30570505]
[1759433245790,0.67,232.32,232.25,4.30570505]
[1759433245980,0.68,232.31,232.25,4.30570505]
[1759433248282,0.68,232.31,232.14,0.27]
[1759433248283,36.54608301,232.31,232.14,0.27]
[1759433248479,1.7662468,232.28,232.17,4.30714945]
[1759433248783,21.48,232.27,232.17,4.30714945]
[1759433248967,0.68,232.26,232.17,4.30714945]
[1759433249282,0.68,232.25,232.17,4.30714945]
[1759433249479,4.98593906,232.24,232.17,4.30714945]
[1759433249684,4.30593906,232.24,232.17,4.30714945]
[1759433249872,0.68,232.23,232.17,4.30714945]
[1759433250396,0.68,232.22,232.16,20.9]
[1759433250899,4.98593906,232.24,232.17,0.27]
[1759433251069,0.68,232.24,232.16,25.20735277]
[1759433251257,0.68,232.23,232.16,25.20735277]
[1759433251463,10.76248301,232.29,232.16,35.97578833]
[1759433251666,10.76248301,232.29,232.17,21.07]
[1759433251667,0.66,232.28,232.17,21.07]
[1759433251965,0.66,232.27,232.17,21.07]
[1759433252186,4.30507835,232.29,232.17,20.8]
[1759433252187,0.66,232.26,232.17,20.8]
[1759433252392,0.66,232.25,232.17,20.8]
[1759433252583,0.66,232.29,232.21,20.8]
[1759433252764,0.66,232.29,232.21,21.07]
[1759433253464,0.66,232.29,232.22,4.3062613]
[1759433254476,4.96469504,232.31,232.23,0.27]
[1759433255178,4.96469504,232.31,232.24,4.30589045]
[1759433255573,0.66,232.31,232.24,4.30589045]
[1759433257389,0.66,232.3,232.22,4.3062613]
[1759433257591,0.66,232.29,232.22,4.3062613]
[1759433258085,0.66,232.31,232.23,0.27]
[1759433259072,4.96471859,232.31,232.24,4.30589045]
[1759433259392,0.66,232.3,232.24,4.30589045]
[1759433260308,0.66,232.3,232.22,15.07191455]
[1759433260466,0.66,232.29,232.22,15.07191455]
[1759433261272,0.66,232.29,232.22,15.34191455]
[1759433261791,0.66,232.33,232.23,0.27]
[1759433261996,0.66,232.32,232.23,0.27]
[1759433262600,0.66,232.32,232.22,45.67191455]
[1759433262895,0.66,232.31,232.22,35.1762613]
[1759433263099,0.66,232.3,232.23,0.27]
[1759433263396,0.66,232.33,232.23,0.27]
[1759433263584,4.30440771,232.32,232.21,10.76599044]
[1759433263780,0.66,232.31,232.21,11.03599044]
[1759433263980,0.66,232.3,232.22,0.27]
[1759433264569,0.66,232.3,232.23,4.30607587]
[1759433265471,4.96478714,232.3,232.23,4.30607587]
[1759433265670,4.30478714,232.3,232.23,4.30607587]
[1759433265886,0.66,232.29,232.23,4.30607587]
[1759433266196,0.66,232.28,232.23,4.30607587]
[1759433266398,0.66,232.27,232.22,4.3062613]
[1759433268299,0.66,232.26,232.21,25.10644675]
[1759433268694,0.66,232.25,232.21,25.10644675]
[1759433268999,4.30522816,232.28,232.21,20.8]
[1759433269171,0.66,232.25,232.21,20.8]
[1759433269569,0.66,232.24,232.21,20.8]
[1759433269786,0.66,232.26,232.2,25.10662629]
[1759433270699,0.66,232.28,232.21,0.27]
[1759433271689,4.30473211,232.31,232.22,15.07191455]
[1759433271892,0.66,232.31,232.23,0.27]
[1759433273604,4.96464285,232.31,232.24,4.30589045]
[1759433273780,0.66,232.3,232.24,4.30589045]
[1759433273981,0.66,232.3,232.23,0.27]
[1759433274900,0.66,232.3,232.23,4.57605836]
[1759433275097,0.66,232.3,232.23,4.30605836]
[1759433277312,0.66,232.29,232.23,4.30605836]
[1759433277685,0.66,232.29,232.23,34.90605836]
[1759433278506,13.65705613,232.35,232.23,45.94124804]
[1759433278507,0.66,232.31,232.23,45.94124804]
[1759433280408,10.76009296,232.34,232.23,45.67124804]
[1759433280608,0.66,232.3,232.23,45.67124804]
[1759433281888,0.7,232.29,232.21,4.30644675]
[1759433282215,0.7,232.28,232.21,4.30644675]
[1759433282522,0.7,232.27,232.21,4.30644675]
[1759433282680,10.87647521,232.32,232.21,4.30644675]
[1759433282880,15.7660755,232.31,232.21,4.30644675]
[1759433283191,0.7,232.3,232.21,4.30644675]
[1759433283395,0.7,232.29,232.21,4.30644675]
[1759433283605,0.7,232.28,232.21,4.30644675]
[1759433283783,5.0052547,232.28,232.21,4.30644675]
[1759433284184,5.0052547,232.28,232.2,20.8]
[1759433284185,0.7,232.27,232.2,20.8]
[1759433284397,0.7,232.26,232.2,20.8]
[1759433284592,0.7,232.25,232.2,20.8]
[1759433285008,15.06812709,232.28,232.2,20.8]
[1759433285009,0.7,232.24,232.2,20.8]
[1759433285307,0.7,232.26,232.2,25.10662998]
[1759433285502,0.7,232.25,232.2,25.10662998]
[1759433285707,0.7,232.24,232.2,25.10662998]
[1759433286096,4.30542899,232.27,232.2,25.10662998]
[1759433286288,0.7,232.26,232.2,25.10662998]
[1759433286483,12.64272201,232.25,232.16,0.1]
[1759433286708,2.4662468,232.24,232.16,0.1]
[1759433288215,4.30607587,232.23,232.16,0.1]
[1759433288414,15.07126555,232.23,232.16,0.1]
[1759433288598,0.7,232.22,232.16,0.1]
[1759433290234,5.0063655,232.22,232.16,4.4073672]
[1759433290397,0.7,232.21,232.16,4.4073672]
[1759433290596,0.7,232.2,232.16,4.4073672]
[1759433290789,0.7,232.19,232.16,0.1]
[1759433291093,0.7,232.18,232.16,0.1]
[1759433291493,0.7,232.17,232.16,0.1]
[1759433293409,0.7,232.2,232.16,0.1]
[1759433293588,0.7,232.19,232.16,0.1]
[1759433294290,0.7,232.18,232.16,0.1]
[1759433294685,0.7,232.2,232.16,0.1]
[1759433294916,0.7,232.19,232.16,0.1]
[1759433295894,0.7,232.18,232.16,0.1]
[1759433296917,0.7,232.19,232.16,0.1]
[1759433297216,0.7,232.18,232.16,0.1]
[1759433298112,4.30607587,232.23,232.16,0.1]
[1759433298310,0.7,232.2,232.16,0.1]
[1759433299130,0.7,232.19,232.16,0.1]
[1759433299609,0.7,232.18,232.16,0.1]
[1759433300117,0.7,232.22,232.16,4.40733465]
[1759433301020,0.7,232.22,232.16,15.17577021]
[1759433301514,0.7,232.25,232.17,0.27]
[1759433302103,0.7,232.25,232.16,15.17577021]
[1759433302291,0.7,232.25,232.17,0.27]
[1759433302497,0.7,232.25,232.17,30.87]
[1759433302696,0.7,232.26,232.18,0.27]
[1759433303110,0.7,232.26,232.19,4.30681769]
[1759433303314,0.7,232.25,232.19,4.30681769]
[1759433303515,0.7,232.24,232.19,4.30681769]
[1759433303726,0.7,232.23,232.19,4.30681769]
[1759433304423,0.71,232.25,232.18,15.07451114]
[1759433304630,0.71,232.25,232.18,15.34451114]
[1759433304810,0.71,232.25,232.18,15.07451114]
[1759433307899,0.71,232.24,232.18,15.07451114]
[1759433309202,0.71,232.24,232.18,15.34451114]
[1759433309927,0.71,232.24,232.18,45.94451114]
[1759433311823,4.30558013,232.26,232.18,45.65451114]